Cogmind - Beta 15 @@@ ROGUE MODE // 2025.07.06 @ 21:00:57 Player: Skysub Result: Destroyed by UC-RCX(R) with Subdweller Machine Gun Performance ------------- Evolutions (0) 0 Regions Visited (2) 400 Robots Destroyed (32) 160 Value Destroyed (684) 684 Prototype IDs (0) 0 Alien Tech Used (0) 0 Bonus (0) 0 TOTAL SCORE: 1244 Bonus ------- None Cogmind --------- Core Integrity 0/250 Matter 275/300 Energy 99/100 System Corruption 0% Temperature Cool (0) Movement Core (100) Ox1 Location -10/Subcaves Parts ------- > --- POWER (1) -------- (None) > --- PROPULSION (2) --- (None) > --- UTILITY (2) ------ Small Storage Unit > --- WEAPON (2) ------- Light Assault Rifle > --- INVENTORY (8) ---- Ion Engine Subdweller Power Source Light Nuclear Core Wheel Subdweller Optics Subdweller Optics Peak State ------------ > --- POWER ------------ Ion Engine > --- PROPULSION ------- Light Treads Light Treads > --- UTILITY ---------- Small Storage Unit Core Shielding > --- WEAPON ----------- Assault Rifle Light Assault Rifle > --- INVENTORY -------- Ion Engine Light Nuclear Core Wheel Small Laser Grenade Launcher Mining Laser [Rating: 7] Favorites ----------- Power Ion Engine Engine Ion Engine Propulsion Light Treads Treads Light Treads Wheel Compact Wheel Utility Small Storage Unit Storage Small Storage Unit Protection Light Armor Plating Weapon Assault Rifle Energy Gun Small Laser Ballistic Gun Assault Rifle Launcher Grenade Launcher Special Weapon Mining Laser Build | -11 -10 -10 ------- Run | Yrd Mat Sub Slots Evolved . | . . . Power . | . . . Propulsion . | . . . Utility . | . . . Weapon . | . . . Parts Attached 17 | 6 9 2 Power 2 | 1 1 . Engine 2 | 1 1 . Core . | . . . Reactor . | . . . Propulsion 4 | 2 2 . Treads 2 | 2 . . Leg . | . . . Wheel 2 | . 2 . Hover . | . . . Flight . | . . . Utility 3 | 1 2 . Device . | . . . Storage 1 | 1 . . Processor . | . . . Hackware . | . . . Protection 2 | . 2 . Artifact . | . . . Weapon 8 | 2 4 2 Energy Gun 2 | . 2 . Energy Cannon . | . . . Ballistic Gun 4 | 2 1 1 Ballistic Cannon . | . . . Launcher 1 | . 1 . Special Weapon 1 | . . 1 Impact Weapon . | . . . Slashing Weapon . | . . . Piercing Weapon . | . . . Special Melee Weapon . | . . . Unidentified Prototypes . | . . . Parts Lost 14 | . 7 7 Power 2 | . 1 1 Propulsion 4 | . 2 2 Utility 1 | . . 1 Weapon 7 | . 4 3 Highest Loss Streak 5 | . 5 4 To Critical Strikes . | . . . Average Backups 5 | 2 5 7 Power 1 | . 1 2 Propulsion . | . 1 1 Utility . | . . 1 Weapon 2 | . 2 1 Tool/Special . | . . . Unused Backups 6 | . . 6 Power 3 | . . 3 Propulsion 1 | . . 1 Utility 2 | . . 2 Weapon . | . . . Tool/Special . | . . . Average Slot Usage (%) 81 | . 88 47 Engine 10 | . 13 1 Treads 15 | . 18 . Wheel 6 | . 7 3 Storage 14 | . 14 14 Protection 5 | . 6 2 Energy Gun 6 | . 6 5 Ballistic Gun 19 | . 21 12 Special Weapon 1 | . . 8 Peak Build Rating 7 | 6 7 7 Average Rating 5 | 4 6 4 On Entrance 4 | . 6 7 Naked Turns . | . . . Heaviest Build 16 | 13 16 16 Greatest Support 40 | 40 40 26 Greatest Overweight (x) 2 | 1 . 2 Average Overweight (x) . | . . 1 Largest Inventory Capacity 8 | 8 8 8 Average Capacity 7 | 7 8 8 Most Carried 8 | 4 6 8 Average Carried 5 | 2 5 7 Final Capacity 8 | 8 8 8 Final Carried 6 | 4 5 6 Class Distribution -------------------- 81% | Mutant 18% | Scavenger-Mutant Dominant Class ---------------- Mutant | -10/Materials Mutant | -10/Subcaves Resources | -11 -10 -10 ----------- Run | Yrd Mat Sub Matter Collected 627 | 219 395 13 Remotely . | . . . Salvage Created 1007 | 35 882 90 Parts 68 | 4 60 4 Haulers Intercepted . | . . . Recyclers Shooed 1 | . 1 . Parts Field Recycled . | . . . Retrieved Matter . | . . . Parts Self-Destructed 9 | . . 9 Prevented . | . . . Kills | -11 -10 -10 ------- Run | Yrd Mat Sub Combat Hostiles Destroyed 22 | . 20 2 Guns 21 | . 19 2 AOE 1 | . 1 . Classes Destroyed 8 | 1 6 1 Worker 3 | . 3 . Builder 2 | . 2 . Tunneler 2 | 2 . . Recycler 2 | . 2 . Operator 1 | . 1 . Swarmer 6 | . 6 . Grunt 14 | . 14 . Subdweller 2 | . . 2 Best Kill Streak 4 | 2 4 2 Combat Bots Only 4 | . 4 2 Max Kills in Single Turn 1 | 1 1 1 Gunslinging . | . . . Exploded 1 | . 1 . Melee . | . . . Uniques/NPCs Destroyed . | . . . Combat | -11 -10 -10 -------- Run | Yrd Mat Sub Hostile Shots Fired 144 | . 119 25 Missed 46 | . 36 10 Hits 98 | . 83 15 Projectile 98 | . 83 15 Critical Strikes 1 | . . 1 Damage Taken 1343 | . 926 417 Core 271 | . 105 166 Absorbed by Shields . | . . . Redirected to Shielding 2 | . 2 . Core Remaining (%) 100 | 100 . . Volleys Fired 117 | 3 87 27 Largest 2 | 2 2 2 Hottest 100 | 40 60 100 Shots Fired 207 | 6 167 34 Gun 202 | 6 165 31 Cannon . | . . . Launcher 2 | . 2 . Special 3 | . . 3 Kinetic 153 | 6 130 17 Thermal 52 | . 35 17 Explosive 2 | . 2 . Electromagnetic . | . . . Robot Hit Streak 14 | 2 14 10 Robot Miss Streak 5 | 1 5 1 Penetration Max . | . . . Secondary Targets 3 | . 2 1 Max Gunslinging Chain 1 | . 1 1 Shots Hit Robots 130 | 3 101 26 Core Hits 59 | 3 48 8 Critical Kills . | . . . Critical Parts Destroyed . | . . . Critical Strikes . | . . . Melee Attacks . | . . . Impact . | . . . Slashing . | . . . Piercing . | . . . Sneak Attacks . | . . . Combat Hostiles . | . . . Follow-up Attacks . | . . . Damage Inflicted 1507 | 30 1207 270 Guns 1392 | 30 1092 270 Cannons . | . . . Explosions 101 | . 101 . Melee . | . . . Ramming 14 | . 14 . Kinetic 1005 | 30 851 124 Thermal 387 | . 241 146 Explosive 101 | . 101 . Electromagnetic . | . . . Impact . | . . . Slashing . | . . . Piercing . | . . . Highest Corruption . | . . . Average Corruption . | . . . Corruption Purged . | . . . Corruption Blocked . | . . . Overload Shots . | . . . Overflow Damage . | . . . Projectiles . | . . . Explosions . | . . . Melee . | . . . Knockbacks . | . . . Impact . | . . . Kinetic . | . . . Secondary . | . . . Self-Inflicted Damage 76 | . 76 . Shots 2 | . 2 . Rammed 4 | . 4 . Targets Rammed 6 | . 6 . Kicked . | . . . Crushed 2 | . 2 . Highest Temperature 107 | . 107 . Average Temperature 25 | . 25 . Received Heat Transfer 390 | . 372 18 Siege Activations . | . . . Martial Activations . | . . . Shielding Activations . | . . . Robots Disrupted . | . . . Combat Hostiles . | . . . Robots Corrupted . | . . . Combat Hostiles . | . . . Parts Fried . | . . . Impact Corruptions . | . . . Robots Melted . | . . . Combat Hostiles . | . . . Parts Melted . | . . . Heat Transferred 875 | . 550 325 Parts Sabotaged . | . . . Parts Stolen . | . . . Parts Stripped . | . . . Power Chain Reactions . | . . . Alert | -11 -10 -10 ------- Run | Yrd Mat Sub Maximum Alert Level 1 | . 1 . Low Security (%) 59 | 100 55 . Level 1 40 | . 44 . Level 2 . | . . . Level 3 . | . . . Level 4 . | . . . Level 5 . | . . . High Security . | . . . Max Security . | . . . Peak Influence 240 | 10 240 . Initial . | . . . Average 143 | . 155 . Influence Increases 660 | 10 650 . Destroy 0b10 Robot/C 400 | . 400 . Destroy 0b10 Robot/NC 50 | 10 40 . Destroy Leader 100 | . 100 . Successful Hack 22 | . 22 . Select Force Hacks 30 | . 30 . Destroy Structure 13 | . 13 . Lose Combat Pursuer 45 | . 45 . Influence Decreases 660 | 10 440 210 Entered New Map 102 | . . 102 Time Decay 448 | 10 370 68 Lost Part 110 | . 70 40 Squads Dispatched 7 | . 7 . Investigation 5 | . 5 . Extermination . | . . . Reinforcement 2 | . 2 . Assault . | . . . Garrison . | . . . Intercept . | . . . Searches Triggered . | . . . Construction Impeded . | . . . Haulers Reinforced . | . . . Active Scanning Responses . | . . . Cargo Convoy Interrupts . | . . . Stealth | -11 -10 -10 --------- Run | Yrd Mat Sub Distress Signals 2 | . 2 . Communications Jammed . | . . . Distress Signals . | . . . Times Spotted 36 | . 33 3 Peak Tracking Total 5 | . 5 2 Tactical Retreats 3 | . 3 . Traps | -11 -10 -10 ------- Run | Yrd Mat Sub Traps Triggered 5 | . 3 2 Indirectly . | . . . Trap Hack Attempts . | . . . Triggered . | . . . Disarmed . | . . . Reprogrammed . | . . . Reused . | . . . Traps Extracted . | . . . Installed . | . . . Triggered . | . . . Machines | -11 -10 -10 ---------- Run | Yrd Mat Sub Machines Disabled . | . . . Max in Single Turn . | . . . Machines Repaired . | . . . Machines Dismantled . | . . . Machines Sabotaged . | . . . Overloaded Fab Kills . | . . . Hacking | -11 -10 -10 --------- Run | Yrd Mat Sub Machines Accessed 8 | . 8 . Terminals 6 | . 6 . Fabricators . | . . . Repair Stations . | . . . Recycling Units 2 | . 2 . Scanalyzers . | . . . Garrison Access . | . . . Total Hacks 23 | . 23 . Successful 13 | . 13 . Failed 10 | . 10 . Catastrophic 1 | . 1 . Database Lockouts . | . . . Manual 17 | . 17 . Terminals 15 | . 15 . Fabricators . | . . . Repair Stations . | . . . Recycling Units 8 | . 8 . Scanalyzers . | . . . Garrison Access . | . . . Terminal Hacks . | . . . Fabricator Hacks . | . . . Repair Station Hacks . | . . . Recycling Unit Hacks 4 | . 4 . Report Inventory 2 | . 2 . Retrieve Components 2 | . 2 . Scanalyzer . | . . . Garrison Access Hacks . | . . . Unauthorized Hacks 9 | . 9 . Terminals 8 | . 8 . Botnet 2 | . 2 . Skim 6 | . 6 . Fabricators . | . . . Repair Stations . | . . . Recycling Units 1 | . 1 . Tunnel 1 | . 1 . Scanalyzers . | . . . Garrison Access . | . . . Data Cores Recovered . | . . . Used . | . . . Hacking Detections 6 | . 6 . Full Trace Events 3 | . 3 . Feedback Events . | . . . Feedback Blocked . | . . . Robot Schematics Acquired . | . . . Robots Built . | . . . Authchips . | . . . Time . | . . . Total Robot Build Rating . | . . . Part Schematics Acquired . | . . . Parts Built . | . . . Authchips . | . . . Time . | . . . Total Part Build Rating . | . . . Parts Repaired . | . . . Time . | . . . Parts Recycled . | . . . Recycled Matter . | . . . Retrieved Matter . | . . . Retrieved Components 19 | . 19 . Parts Scanalyzed . | . . . Part Schematics Acquired . | . . . Parts Damaged . | . . . Bothacking | -11 -10 -10 ------------ Run | Yrd Mat Sub Used RIF Installer . | . . . Robots Hacked . | . . . Non-combat . | . . . Combat . | . . . Robot Hacks Applied . | . . . Relay Couplers Released . | . . . Fabnet Peak Effective % . | . . . Robots Rewired . | . . . Allies Hacked . | . . . Hacks Repelled . | . . . Allies | -11 -10 -10 -------- Run | Yrd Mat Sub Total Allies . | . . . Largest Group . | . . . Highest-Rated Group . | . . . Highest-Rated Ally . | . . . Total Orders . | . . . Ally Attacks . | . . . Total Damage . | . . . Kills . | . . . Allies Corrupted . | . . . Allies Melted . | . . . Intel | -11 -10 -10 ------- Run | Yrd Mat Sub Active Infowar (turns) . | . . . Robot Analysis Total . | . . . Derelict Logs Recovered . | . . . Drone Launches . | . . . Drone Recoveries . | . . . Exploration | -11 -10 -10 ------------- Run | Yrd Mat Sub Turns Passed 1420 | 94 1090 236 Spaces Moved 742 | 49 593 100 Core 102 | 5 . 97 Treads 334 | 44 290 . Legs . | . . . Wheels 306 | . 303 3 Hover . | . . . Flight . | . . . Fastest Speed 50 | 50 90 90 Average Speed 129 | 150 125 141 Slowest Speed 160 | 160 160 150 Overloaded Moves . | . . . Propulsion Burnouts . | . . . Robots Hopped . | . . . Potential Cave-ins . | . . . Cave-ins Triggered . | . . . Exploration Rate (%) 37 | 4 98 11 Regions Visited 2 Branch Regions 1 Pre-discovered Areas 1 | . 1 . Known Exits Taken . | . . . Unknown Exits Taken 2 | 1 1 . Scrap Searched . | . . . Spaces Dug . | . . . Terrain Destroyed 13 | . 13 . Melee . | . . . Projectile . | . . . AOE 13 | . 13 . Terrain Rammed . | . . . Walls Destroyed . | . . . Machines Disabled . | . . . Actions | -11 -10 -10 --------- Run | Yrd Mat Sub Total 993 | 61 776 156 Wait 102 | . 79 23 Move 740 | 48 592 100 Hop . | . . . Pick Up 10 | 4 3 3 Fast Attach 12 | 6 6 . Attach 4 | . 2 2 Detach . | . . . Swap 2 | . 1 1 Drop . | . . . Fire 117 | 3 87 27 Melee . | . . . Ram 2 | . 2 . Kick . | . . . Crush 4 | . 4 . Escape Stasis . | . . . Rewire . | . . . Trap . | . . . Miscellaneous . | . . . Route ------- -11/Scrapyard -10/Materials (discovered 5 exits: [*Mat x3] / [*Min] / [*Sub]) -10/Subcaves History --------- Turn | Location | Event 9 | -11/Scrapyard | Discovered new exit (range 16) 95 | -11/Scrapyard | Entered Materials 282 | -10/Materials | Discovered new exit (range 7) 305 | -10/Materials | Build established: Mutant 450 | -10/Materials | Discovered new exit (range 15) 791 | -10/Materials | Lost 5 parts (1p1n3w) 801 | -10/Materials | Discovered new exit (range 4) 976 | -10/Materials | Discovered new exit (range 15) 1165 | -10/Materials | Discovered new exit (range 7) 1185 | -10/Materials | Entered Subcaves 1186 | -10/Subcaves | Approached by a straggling Scientist 1220 | -10/Subcaves | Core integrity fell below 50% 1248 | -10/Subcaves | Lost 4 parts (1p2n1u) 1271 | -10/Subcaves | A swath of the cavern ceiling suddenly collapsed 1375 | -10/Subcaves | Core integrity fell below 20% 1421 | -10/Subcaves | Destroyed by UC-RCX(R) with Subdweller Machine Gun Last Messages --------------- 01228_ Acquired 13 matter. 01231_ Acquired Sub. Optics. 01234_ Subatomizers dissect the Disposable Heat Sink. JJ-DPJ(c): "I think it's somewhere north of here" 01237_ Acquired Sub. Optics. A swath of the cavern ceiling suddenly collapses. JJ-DPJ(c): "I think it's somewhere north of here" 01361_ Triggered Piercing Trap. 01361_ Spikes shoot up from the floor. 01361_ Critical hit (Impale). 01374_ Triggered Shrapnel Trap. 01374_ An expanding cloud of shrapnel blasts out in all directions. 01374_ Assault Rifle destroyed. 01375_ JJ-DPJ(c) triggered Piercing Trap. 01375_ Spikes shoot up from the floor. 01375_ JJ-DPJ(c) suffers critical hit (Impale). 01375_ JJ-DPJ(c) destroyed. 01388_ UC-RCX(R): "SUBHATE!" 01404_ Sml. Laser destroyed. 01408_ Mining Laser destroyed. Map ----- +----------------------------------------------------+ | ????????????????????????????????????????????? | | ????????????????????????????????????????????? | | ????????????????????????????????????????????? | | ????????????????????????????????????????????? | | ????????????????????????????????????????????? | | ????????????????????????????????????????????? | | ????????????????????????????????????????????? | | ????????????????????????????????????????????? | | ????????????????????????????????????????????? | | ????????????????????????????????????????????? | | ????????????????????????????????????????????? | | ????????????????????????????????????????????? | | ????????????????????????"???????????????????? | | ???????????????????????"""??????????????????? | | ??????????????????????? #??????????????????? | | ??????????????????????? %???????????????????? | | ??????????????????????# ???????????????????? | | ?????????????????????#R ????????????????????? | | ???????????????????## ????????????????????? | | ???????????????????# #????????????????????? | | ???????????????##### %#?????#??????????????? | | ???????????????# ##??? #??????????????? | | ???????????????# % ### #??????????????? | | ??????????????## #??????????????? | | ??????????????# #??????????????? | | ???????????????# @ #????????????????? | | ???????????????## ### #????????????????? | | ????????????????## ##??? ###??????????????? | | ????????????????## #??? ??????????????? | | ???????????????## ##??# ?????????????? | | ???????????????# ##??# ??????????????? | | ??????????????## #??# ????????????????? | | ??????????????# #?# #??????????????????? | | ??????????????# ## #???????????????????? | | ??????????????## #????????????????????? | | ??????????????### "####????????????????????? | | ??????????????#"; "#??????????????????????? | | ??????????????#" "#??????????????????????? | | ??????????????#" "#??????????????????????? | | ??????????????#" "##??????????????????????? | | ??????????????#" "#???????????????????????? | | ??????????????#" ^ "#???????????????????????? | | ??????????????## ##???????????????????????? | | ???????????????# ##???????????????????????? | | ???????????????# !% #???????????????????????? | | ???????????????# ^ #???????????????????????? | | ???????????????# ##???????????????????????? | | ??????????????## ##????????????????????????? | | ??????????????# ##????????????????????????? | | ??????????????## #????????????????????????? | +----------------------------------------------------+ Best States ------------- Heat Dissipation 25 Energy Generation 10 Energy Capacity 250 Matter Stores 300 Matter Capacity 300 Sight Range 16 Terrain Scan Density 10 Armor Coverage 150 Core Shielding 20 Evasion (%) 42 Recoil Reduction 2 Item Schematics ----------------- None Robot Schematics ------------------ None Fabricated ------------ Nothing Repaired ---------- Nothing Alien Tech Used ----------------- None Achievements -------------- None Challenges ------------ None Game ------ Seed HackingFlightPick Manual? 0 Play Time 00:09:05 Cumulative 139.3 hours Start 2025.07.06 @ 20:52:59 End 2025.07.06 @ 21:00:57 Sessions 1 Manual Loads 0 Difficulty Rogue Special Mode None Game No. 146 Rogue 146 Adventurer 0 Explorer 0 Win Type - Total 3 Types 1/0/0/1/0/0/0/0/0/1 Lore% 63 Gallery% 59 Achievement% 52 Wizard Run 0 Options --------- Layout 1 ASCII 0 Keyboard 1 Movement Numpad Keybinds 0 Fullscreen 1 Font 32/SmallcapsGlow Map View 77x35 Zoom Use 0% Tactical HUD 1 Map Filters NONE Filters NONE Steam 1 RUN: e967c3aa-7eb7-44aa-a049-994c35dd9ecf